fUSD/lending_fUSD_20260115
["ID","MTS","AMOUNT","RATE_DAILY","PERIOD"]
[402012388,1768457459369,-758.85,0.00041369,30]
[402012389,1768457459378,-1244.54,0.00041369,30]
[402012390,1768457459388,-945.69,0.00041369,30]
[402012391,1768457459397,-500.0,0.00041369,30]
[402012392,1768457459406,-500.0,0.00041369,30]
[402012393,1768457459416,-500.0,0.00041369,30]
[402012394,1768457459426,-500.0,0.00041369,30]
[402012395,1768457459436,-1080.01,0.00041369,30]
[402012396,1768457459450,-500.0,0.00041369,30]
[402012397,1768457459460,-643.24,0.00041369,30]
[402012398,1768457459471,-500.0,0.00041369,30]
[402012399,1768457459481,-500.0,0.00041369,30]
[402012400,1768457459491,-2241.78,0.00041369,30]
[402012401,1768457459501,-500.0,0.00041369,30]
[402012402,1768457459510,-500.0,0.00041369,30]
[402012403,1768457459522,-563.06,0.00041369,30]
[402012404,1768457459532,-759.35,0.00041369,30]
[402012405,1768457459542,-1093.43,0.00041369,30]
[402012406,1768457459551,-500.0,0.00041369,30]
[402012407,1768457459560,-1328.1,0.00041369,30]
[402012408,1768457459570,-500.0,0.00041369,30]
[402012409,1768457459579,-2331.95,0.00041369,30]
[402012410,1768457459589,-1848.93,0.00041369,30]
[402012411,1768457459598,-1465.14,0.00041369,30]
[402012412,1768457459608,-1757.19,0.00041369,30]
[402012413,1768457459618,-1020.5,0.00041369,30]
[402012414,1768457459632,-500.0,0.00041369,30]
[402012415,1768457459641,-500.0,0.00041369,30]
[402012416,1768457459651,-2683.99,0.00041369,30]
[402012417,1768457459662,-526.43,0.00041369,30]
[402012418,1768457459672,-522.23,0.00041369,30]
[402012419,1768457459681,-919.76,0.00041369,30]
[402012420,1768457459691,-500.0,0.00041369,30]
[402012421,1768457459701,-804.6,0.00041369,30]
[402012422,1768457459711,-514.00593607,0.00041369,30]
[402012423,1768457459722,-500.0,0.00041369,30]
[402012424,1768457459732,-989.66,0.00041369,30]
[402012425,1768457459742,-1404.8,0.00041369,30]
[402012426,1768457459752,-1152.57,0.00041369,30]
[402012427,1768457459761,-500.0,0.00041369,30]
[402012428,1768457459771,-2134.33,0.00041369,30]
[402012429,1768457459781,-1306.82,0.00041369,30]
[402012430,1768457459791,-500.0,0.00041369,30]
[402012431,1768457459801,-1386.77,0.00041369,30]
[402012432,1768457459811,-500.0,0.00041369,30]
[402012433,1768457459820,-920.43,0.00041369,30]
[402012434,1768457459830,-500.0,0.00041369,30]
[402012435,1768457459840,-500.0,0.00041369,30]
[402012436,1768457459850,-760.77,0.00041369,30]
[402012437,1768457459860,-500.0,0.00041369,30]
[402012438,1768457459870,-500.0,0.00041369,30]
[402012439,1768457459879,-735.77,0.00041369,30]
[402012440,1768457459890,-500.0,0.00041369,30]
[402012441,1768457459900,-1128.46,0.00041369,30]
[402012442,1768457459910,-529.02,0.00041369,30]
[402012443,1768457459919,-566.59,0.00041369,30]
[402012444,1768457459929,-973.06,0.00041369,30]
[402012445,1768457459940,-2420.8,0.00041369,30]
[402012446,1768457459950,-500.0,0.00041369,30]
[402012447,1768457459959,-758.96,0.00041369,30]
[402012448,1768457459969,-500.0,0.00041369,30]
[402012449,1768457459979,-1514.71,0.00041369,30]
[402012450,1768457459989,-321.23769745,0.00041369,30]
[402012451,1768457459998,-500.0,0.00041369,30]
[402012452,1768457460008,-719.06,0.00041369,30]
[402012453,1768457460017,-1100.58,0.00041369,30]
[402012454,1768457460032,-500.0,0.00041369,30]
[402012455,1768457460041,-605.49,0.00041369,30]
[402012456,1768457460051,-500.0,0.00041369,30]
[402012457,1768457460060,-500.0,0.00041369,30]
[402012458,1768457460070,-1055.56,0.00041369,30]
[402012459,1768457460079,-500.0,0.00041369,30]
[402012460,1768457460089,-1365.21,0.00041369,30]
[402012461,1768457460098,-1235.49,0.00041369,30]
[402012462,1768457460108,-4767.29,0.00041369,30]
[402012463,1768457460118,-1812.03,0.00041369,30]
[402012464,1768457460128,-1326.3,0.00041369,30]
[402012465,1768457460139,-500.0,0.00041369,30]
[402012466,1768457460149,-752.31,0.00041369,30]
[402012467,1768457460158,-500.0,0.00041369,30]
[402012468,1768457460167,-500.0,0.00041369,30]
[402012469,1768457460178,-500.0,0.00041369,30]
[402012470,1768457460187,-1808.66,0.00041369,30]
[402012471,1768457460196,-535.84,0.00041369,30]
[402012472,1768457460206,-500.0,0.00041369,30]
[402012473,1768457460217,-500.0,0.00041369,30]
[402012474,1768457460227,-500.0,0.00041369,30]
[402012475,1768457460236,-1229.13,0.00041369,30]
[402012476,1768457460246,-500.0,0.00041369,30]
[402012477,1768457460256,-704.68,0.00041369,30]
[402012478,1768457460265,-421.92971168,0.00041369,30]
[402012479,1768457460275,-500.0,0.00041369,30]
[402012480,1768457460284,-500.0,0.00041369,30]
[402012481,1768457460293,-500.0,0.00041369,30]
[402012482,1768457460303,-500.0,0.00041369,30]
[402012483,1768457460312,-500.0,0.00041369,30]
[402012484,1768457460322,-569.96314411,0.00041369,30]
[402012485,1768457460331,-608.31,0.00041369,30]
[402012486,1768457460341,-500.0,0.00041369,30]
[402012487,1768457460351,-1541.35,0.00041369,30]
[402012488,1768457460360,-500.0,0.00041369,30]
[402012489,1768457460370,-500.0,0.00041369,30]
[402012490,1768457460380,-713.76,0.00041369,30]
[402012491,1768457460389,-1441.38,0.00041369,30]
[402012492,1768457460399,-500.0,0.00041369,30]
[402012493,1768457460407,-815.44,0.00041369,30]
[402012494,1768457460421,-1161.33,0.00041369,30]
[402012495,1768457460430,-500.0,0.00041369,30]
[402012496,1768457460440,-500.0,0.00041369,30]
[402012497,1768457460451,-500.0,0.00041369,30]
[402012498,1768457460460,-500.0,0.00041369,30]
[402012499,1768457460472,-1453.7,0.00041369,30]
[402012500,1768457460483,-481.44,0.00041369,30]
[402012501,1768457460492,-500.0,0.00041369,30]
[402012502,1768457460502,-1560.93,0.00041369,30]
[402012503,1768457460515,-500.0,0.00041369,30]
[402012504,1768457460525,-500.0,0.00041369,30]
[402012505,1768457460536,-344.3498972,0.00041369,30]
[402012506,1768457460547,-2037.09,0.00041369,30]
[402012507,1768457460557,-2847.78,0.00041369,30]
[402012508,1768457460568,-500.0,0.00041369,30]
[402012509,1768457460578,-500.0,0.00041369,30]
[402012510,1768457460588,-500.0,0.00041369,30]
[402012511,1768457460598,-1300.27,0.00041369,30]
[402012512,1768457460608,-814.99,0.00041369,30]
[402012513,1768457460621,-500.0,0.00041369,30]
[402012514,1768457460631,-651.85,0.00041369,30]
[402012515,1768457460641,-744.01,0.00041369,30]
[402012516,1768457460651,-500.0,0.00041369,30]
[402012517,1768457460661,-1616.34,0.00041369,30]
[402012518,1768457460670,-500.0,0.00041369,30]
[402012519,1768457460680,-1357.2,0.00041376,120]
[402012520,1768457460695,-994.0743693,0.00041418,30]
[402012521,1768457460705,-151.0,0.000415,120]
[402012522,1768457460715,-12302.26528332,0.00041563,7]
[402012523,1768457460728,-151.0,0.000416,120]
[402012524,1768457460737,-17801.0,0.00041619,30]
[402012525,1768457460747,-162.0,0.00041621,11]
[402012526,1768457460768,-834.0,0.00041626,11]
[402012527,1768457460778,-535.24248566,0.00041633,7]
[402012528,1768457460788,-500.0,0.00041643,30]
[402012529,1768457460798,-500.0,0.00041643,30]
[402012530,1768457460808,-500.0,0.00041643,30]
[402012531,1768457460821,-2107.71,0.00041643,30]
[402012532,1768457460831,-1177.71,0.00041643,30]
[402012533,1768457460840,-1167.2,0.00041643,30]
[402012534,1768457460850,-500.0,0.00041643,30]
[402012535,1768457460860,-628.57,0.00041643,30]
[402012536,1768457460870,-500.0,0.00041643,30]
[402012537,1768457460880,-500.0,0.00041643,30]
[402012538,1768457460890,-500.0,0.00041643,30]
[402012539,1768457460899,-576.36323686,0.00041643,30]
[402012540,1768457460909,-500.0,0.00041643,30]
[402012541,1768457460919,-500.0,0.00041643,30]
[402012542,1768457460928,-1907.56,0.00041643,30]
[402012543,1768457460938,-500.0,0.00041643,30]
[402012544,1768457460947,-500.0,0.00041643,30]
[402012545,1768457460957,-500.0,0.00041643,30]
[402012546,1768457460969,-735.49,0.00041643,30]
[402012547,1768457460979,-500.0,0.00041643,30]
[402012548,1768457460988,-500.0,0.00041643,30]
[402012549,1768457460999,-604.32,0.00041643,30]
[402012550,1768457461008,-500.0,0.00041643,30]
[402012551,1768457461018,-1339.02,0.00041643,30]
[402012552,1768457461028,-199.62325207,0.00041643,30]
[402012553,1768457461038,-886.01,0.00041643,30]
[402012554,1768457461049,-1088.1,0.00041643,30]
[402012555,1768457461059,-500.0,0.00041643,30]
[402012556,1768457461068,-500.0,0.00041643,30]
[402012557,1768457461078,-983.37,0.00041643,30]
[402012558,1768457461088,-500.0,0.00041643,30]
[402012559,1768457461098,-674.5,0.00041643,30]
[402012560,1768457461108,-500.0,0.00041643,30]
[402012561,1768457461117,-500.0,0.00041643,30]
[402012562,1768457461127,-500.0,0.00041643,30]
[402012563,1768457461138,-500.0,0.00041643,30]
[402012564,1768457461148,-500.0,0.00041643,30]
[402012565,1768457461157,-500.0,0.00041643,30]
[402012566,1768457461167,-500.0,0.00041643,30]
[402012567,1768457461177,-500.0,0.00041643,30]
[402012568,1768457461187,-500.0,0.00041643,30]
[402012569,1768457461199,-743.87,0.00041643,30]
[402012570,1768457461208,-500.0,0.00041643,30]
[402012571,1768457461218,-500.0,0.00041643,30]
[402012572,1768457461230,-853.93,0.00041643,30]
[402012573,1768457461240,-909.07,0.00041643,30]
[402012574,1768457461250,-500.0,0.00041643,30]
[402012575,1768457461261,-1042.15,0.00041643,30]
[402012576,1768457461271,-500.0,0.00041643,30]
[402012577,1768457461280,-500.0,0.00041643,30]
[402012578,1768457461290,-500.0,0.00041643,30]
[402012579,1768457461299,-1702.33,0.00041643,30]
[402012580,1768457461309,-500.0,0.00041643,30]
[402012581,1768457461318,-523.98,0.00041643,30]
[402012582,1768457461327,-1421.39,0.00041643,30]
[402012583,1768457461337,-168.14,0.00041643,30]
[402012584,1768457461347,-500.0,0.00041643,30]
[402012585,1768457461357,-500.0,0.00041643,30]
[402012586,1768457461367,-500.0,0.00041643,30]
[402012587,1768457461376,-500.0,0.00041643,30]
[402012588,1768457461386,-574.11,0.00041643,30]
[402012589,1768457461396,-660.29,0.00041643,30]
[402012590,1768457461406,-500.0,0.00041643,30]
[402012591,1768457461415,-500.0,0.00041643,30]
[402012592,1768457461425,-748.92,0.00041643,30]
[402012593,1768457461435,-500.0,0.00041643,30]
[402012594,1768457461447,-732.75,0.00041643,30]
[402012595,1768457461456,-1597.45,0.00041643,30]
[402012596,1768457461467,-1061.88,0.00041643,30]
[402012597,1768457461477,-500.0,0.00041643,30]
[402012598,1768457461487,-500.0,0.00041643,30]
[402012599,1768457461496,-500.0,0.00041643,30]
[402012600,1768457461506,-500.0,0.00041643,120]
[402012601,1768457461517,-500.0,0.00041643,30]
[402012602,1768457461526,-500.0,0.00041643,30]
[402012603,1768457461536,-500.0,0.00041643,30]
[402012604,1768457461546,-1002.17,0.00041643,30]
[402012605,1768457461556,-500.0,0.00041643,30]
[402012606,1768457461565,-1086.92,0.00041643,30]
[402012607,1768457461575,-500.0,0.00041643,30]
[402012608,1768457461587,-740.22,0.00041643,30]
[402012609,1768457461596,-500.0,0.00041643,30]
[402012610,1768457461606,-1199.64,0.00041643,30]
[402012611,1768457461616,-770.55,0.00041643,30]
[402012612,1768457461626,-500.0,0.00041643,30]
[402012613,1768457461636,-704.74,0.00041643,30]
[402012614,1768457461646,-500.0,0.00041643,30]
[402012615,1768457461656,-500.0,0.00041643,30]
[402012616,1768457461666,-500.0,0.00041643,30]
[402012617,1768457461676,-500.0,0.00041643,30]
[402012618,1768457461686,-591.69005256,0.00041643,30]
[402012619,1768457461696,-500.0,0.00041643,30]
[402012620,1768457461706,-572.08,0.00041643,30]
[402012621,1768457461716,-500.0,0.00041643,30]
[402012622,1768457461726,-500.0,0.00041643,30]
[402012623,1768457461736,-500.0,0.00041643,30]
[402012624,1768457461745,-500.0,0.00041643,30]
[402012625,1768457461754,-500.0,0.00041643,30]
[402012626,1768457461764,-811.03,0.00041643,30]
[402012627,1768457461774,-602.56,0.00041643,30]
[402012628,1768457461784,-500.0,0.00041643,30]
[402012629,1768457461793,-500.0,0.00041643,30]
[402012630,1768457461803,-500.0,0.00041643,30]
[402012631,1768457461813,-896.57,0.00041643,30]
[402012632,1768457461822,-1890.27,0.00041643,30]
[402012633,1768457461832,-500.0,0.00041643,30]
[402012634,1768457461841,-500.0,0.00041643,30]
[402012635,1768457461850,-517.74522,0.00041643,30]
[402012636,1768457461860,-1386.02,0.00041643,30]
[402012637,1768457461870,-718.4,0.00041643,30]
[402012638,1768457461879,-500.0,0.00041643,30]
[402012639,1768457461889,-1068.57,0.00041643,30]
[402012640,1768457461899,-1298.61,0.00041643,30]
[402012641,1768457461912,-638.04,0.00041643,30]
[402012642,1768457461921,-1240.73,0.00041643,30]
[402012643,1768457461930,-440.30909375,0.00041643,30]
[402012644,1768457461941,-609.93,0.00041643,30]
[402012645,1768457461950,-500.0,0.00041643,30]
[402012646,1768457461959,-500.0,0.00041643,30]
[402012647,1768457461969,-1206.76,0.00041643,30]
[402012648,1768457461979,-1566.49,0.00041643,30]
[402012649,1768457461990,-1517.9,0.00041643,30]
[402012650,1768457461999,-769.13,0.00041643,30]
[402012651,1768457462008,-500.0,0.00041643,30]
[402012652,1768457462018,-1710.93,0.00041643,30]
[402012653,1768457462027,-500.0,0.00041643,30]
[402012654,1768457462037,-500.0,0.00041643,30]
[402012655,1768457462047,-521.36,0.00041643,30]
[402012656,1768457462057,-938.43,0.00041643,30]
[402012657,1768457462067,-500.0,0.00041643,30]
[402012658,1768457462078,-500.0,0.00041643,30]
[402012659,1768457462088,-500.0,0.00041643,30]
[402012660,1768457462098,-500.0,0.00041643,30]
[402012661,1768457462108,-607.07,0.00041643,30]
[402012662,1768457462119,-500.0,0.00041643,30]
[402012663,1768457462129,-1229.77,0.00041643,30]
[402012664,1768457462140,-1115.2,0.00041643,30]
[402012665,1768457462150,-500.0,0.00041643,30]
[402012666,1768457462161,-1053.01,0.00041643,30]
[402012667,1768457462171,-500.0,0.00041643,30]
[402012668,1768457462181,-500.0,0.00041643,30]
[402012669,1768457462191,-616.53,0.00041643,30]
[402012670,1768457462201,-347.0685798,0.00041643,30]
[402012671,1768457462211,-500.0,0.00041643,30]
[402012672,1768457462222,-500.0,0.00041643,30]
[402012673,1768457462232,-500.0,0.00041643,30]
[402012674,1768457462243,-500.0,0.00041643,30]
[402012675,1768457462254,-500.0,0.00041643,30]
[402012676,1768457462265,-1422.71,0.00041643,30]
[402012677,1768457462275,-500.0,0.00041643,30]
[402012678,1768457462285,-697.43,0.00041643,30]
[402012679,1768457462296,-537.92,0.00041643,30]
[402012680,1768457462307,-500.0,0.00041643,30]
[402012681,1768457462318,-500.0,0.00041643,30]
[402012682,1768457462328,-500.0,0.00041643,30]
[402012683,1768457462343,-500.0,0.00041643,30]
[402012684,1768457462359,-906.97,0.00041643,30]
[402012685,1768457462370,-1326.85,0.00041643,30]
[402012686,1768457462381,-1026.32,0.00041643,30]
[402012687,1768457462392,-1784.09,0.00041643,30]
[402012688,1768457462404,-500.0,0.00041643,30]
[402012689,1768457462415,-729.1,0.00041643,30]
[402012690,1768457462426,-1054.68,0.00041643,30]
[402012691,1768457462437,-500.0,0.00041643,30]
[402012692,1768457462452,-500.0,0.00041643,30]
[402012693,1768457462463,-800.84,0.00041643,30]
[402012694,1768457462475,-500.0,0.00041643,30]
[402012695,1768457462487,-630.13,0.00041643,30]
[402012696,1768457462498,-535.97,0.00041643,30]
[402012697,1768457462509,-1180.97,0.00041643,30]
[402012698,1768457462521,-500.0,0.00041643,30]
[402012699,1768457462531,-500.0,0.00041643,30]
[402012700,1768457462542,-500.0,0.00041643,30]
[402012701,1768457462553,-928.26,0.00041643,30]
[402012702,1768457462564,-1711.76,0.00041643,30]
[402012703,1768457462574,-500.0,0.00041643,30]
[402012704,1768457462586,-740.9,0.00041643,30]
[402012705,1768457462596,-500.0,0.00041643,30]
[402012706,1768457462607,-500.0,0.00041643,30]
[402012707,1768457462617,-673.04,0.00041643,30]
[402012708,1768457462628,-500.0,0.00041643,30]
[402012709,1768457462638,-654.84,0.00041643,30]
[402012710,1768457462648,-1936.32,0.00041643,30]
[402012711,1768457462659,-751.99,0.00041643,30]
[402012712,1768457462669,-830.8,0.00041643,30]
[402012713,1768457462679,-552.47,0.00041643,30]
[402012714,1768457462690,-2332.24,0.00041643,30]
[402012715,1768457462700,-500.0,0.00041643,30]
[402012716,1768457462710,-500.0,0.00041643,30]
[402012717,1768457462721,-500.0,0.00041643,30]
[402012718,1768457462731,-500.0,0.00041643,30]
[402012719,1768457462742,-818.1,0.00041643,30]
[402012720,1768457462753,-958.62,0.00041643,30]
[402012721,1768457462763,-500.0,0.00041643,30]
[402012722,1768457462772,-500.0,0.00041643,30]
[402012723,1768457462783,-1101.7,0.00041643,30]
[402012724,1768457462793,-911.12,0.00041643,30]
[402012725,1768457462803,-500.0,0.00041643,30]
[402012726,1768457462813,-500.0,0.00041643,30]
[402012727,1768457462823,-1650.49,0.00041643,30]
[402012728,1768457462833,-1408.98,0.00041643,30]
[402012729,1768457462843,-715.68,0.00041643,30]
[402012730,1768457462853,-500.0,0.00041643,30]
[402012731,1768457462863,-1989.42,0.00041643,30]
[402012732,1768457462873,-1160.78,0.00041643,30]
[402012733,1768457462883,-500.0,0.00041643,30]
[402012734,1768457462893,-1427.17,0.00041643,30]
[402012735,1768457462903,-500.0,0.00041643,30]
[402012736,1768457462913,-745.24,0.00041643,30]
[402012737,1768457462922,-621.77,0.00041643,30]
[402012738,1768457462933,-500.0,0.00041643,30]
[402012739,1768457462943,-500.0,0.00041643,30]
[402012740,1768457462952,-1198.51,0.00041643,30]
[402012741,1768457462962,-500.0,0.00041643,30]
[402012742,1768457462973,-500.0,0.00041643,30]
[402012743,1768457462983,-500.0,0.00041643,30]
[402012744,1768457462992,-500.0,0.00041643,30]
[402012745,1768457463002,-860.1,0.00041643,30]
[402012746,1768457463012,-1460.4,0.00041643,30]
[402012747,1768457463022,-1354.65,0.00041643,30]
[402012748,1768457463033,-978.4,0.00041643,30]
[402012749,1768457463043,-1741.15,0.00041643,30]
[402012750,1768457463054,-500.0,0.00041643,30]
[402012751,1768457463064,-1002.88,0.00041643,30]
[402012752,1768457463074,-500.0,0.00041643,30]
[402012753,1768457463084,-500.0,0.00041643,30]
[402012754,1768457463095,-1576.1,0.00041643,30]
[402012755,1768457463105,-500.0,0.00041643,30]
[402012756,1768457463115,-500.0,0.00041643,30]
[402012757,1768457463125,-748.64,0.00041643,30]
[402012758,1768457463135,-500.0,0.00041643,30]
[402012759,1768457463145,-500.0,0.00041643,30]
[402012760,1768457463156,-622.54,0.00041643,30]
[402012761,1768457463166,-500.0,0.00041643,30]
[402012762,1768457463176,-500.0,0.00041643,30]
[402012763,1768457463188,-699.12,0.00041643,30]
[402012764,1768457463198,-500.0,0.00041643,30]
[402012765,1768457463208,-500.0,0.00041643,30]
[402012766,1768457463218,-500.0,0.00041643,30]
[402012767,1768457463228,-500.0,0.00041643,30]
[402012768,1768457463238,-1624.09,0.00041643,30]
[402012769,1768457463248,-1127.48,0.00041643,30]
[402012770,1768457463258,-638.02,0.00041643,30]
[402012771,1768457463268,-1294.69,0.00041643,30]
[402012772,1768457463278,-500.0,0.00041643,30]
[402012773,1768457463288,-500.0,0.00041643,30]
[402012774,1768457463298,-500.0,0.00041643,30]
[402012775,1768457463307,-500.0,0.00041643,30]
[402012776,1768457463317,-500.0,0.00041643,30]
[402012777,1768457463328,-1709.04,0.00041643,30]
[402012778,1768457463339,-500.0,0.00041643,30]
[402012779,1768457463349,-745.59,0.00041643,30]
[402012780,1768457463359,-648.47,0.00041643,30]
[402012781,1768457463369,-500.0,0.00041643,30]
[402012782,1768457463379,-881.72,0.00041643,30]
[402012783,1768457463389,-1743.2,0.00041643,30]
[402012784,1768457463399,-500.0,0.00041643,30]
[402012785,1768457463409,-500.0,0.00041643,30]
[402012786,1768457463419,-500.0,0.00041643,30]
[402012787,1768457463428,-500.0,0.00041643,30]
[402012788,1768457463438,-500.0,0.00041643,30]
[402012789,1768457463452,-500.0,0.00041643,30]
[402012790,1768457463461,-1106.16,0.00041643,30]
[402012791,1768457463472,-1531.28,0.00041643,30]
[402012792,1768457463482,-500.0,0.00041643,30]
[402012793,1768457463492,-637.09,0.00041643,30]
[402012794,1768457463501,-500.0,0.00041643,30]
[402012795,1768457463511,-542.37,0.00041643,30]
[402012796,1768457463523,-500.0,0.00041643,30]
[402012797,1768457463533,-500.0,0.00041643,30]
[402012798,1768457463543,-922.92,0.00041643,30]
[402012799,1768457463554,-500.0,0.00041643,30]
[402012800,1768457463563,-539.51,0.00041643,30]
[402012801,1768457463573,-1439.05,0.00041643,30]
[402012802,1768457463583,-500.0,0.00041643,30]
[402012803,1768457463593,-500.0,0.00041643,30]
[402012804,1768457463605,-657.42,0.00041643,30]
[402012805,1768457463615,-569.08,0.00041643,30]
[402012806,1768457463625,-1636.62,0.00041643,30]
[402012807,1768457463634,-502.99,0.00041643,30]
[402012808,1768457463645,-500.0,0.00041643,30]
[402012809,1768457463655,-905.48,0.00041643,30]
[402012810,1768457463664,-783.43,0.00041643,30]
[402012811,1768457463675,-500.0,0.00041643,30]
[402012812,1768457463684,-500.0,0.00041643,30]
[402012813,1768457463695,-1000.0,0.00041643,30]
[402012814,1768457463705,-500.0,0.00041643,30]
[402012815,1768457463716,-500.0,0.00041643,30]
[402012816,1768457463727,-500.0,0.00041643,30]
[402012817,1768457463737,-722.32,0.00041643,30]
[402012818,1768457463747,-500.0,0.00041643,30]
[402012819,1768457463757,-500.0,0.00041643,30]
[402012820,1768457463768,-1308.45,0.00041643,30]
[402012821,1768457463778,-1084.94,0.00041643,30]
[402012822,1768457463788,-1026.1,0.00041643,30]
[402012823,1768457463798,-500.0,0.00041643,30]
[402012824,1768457463808,-1466.71,0.00041643,30]
[402012825,1768457463818,-500.0,0.00041643,30]
[402012826,1768457463827,-500.0,0.00041643,30]
[402012827,1768457463837,-931.54,0.00041643,30]
[402012828,1768457463847,-500.0,0.00041643,30]
[402012829,1768457463857,-500.0,0.00041643,30]
[402012830,1768457463867,-500.0,0.00041643,30]
[402012831,1768457463876,-500.0,0.00041643,30]
[402012832,1768457463886,-500.0,0.00041643,30]
[402012833,1768457463896,-1119.98,0.00041643,30]
[402012834,1768457463906,-500.0,0.00041643,30]
[402012835,1768457463915,-500.0,0.00041643,30]
[402012836,1768457463925,-1319.17,0.00041643,30]
[402012837,1768457463935,-500.0,0.00041643,30]
[402012838,1768457463945,-500.0,0.00041643,30]
[402012839,1768457463955,-543.44,0.00041643,30]
[402012840,1768457463964,-742.69,0.00041643,30]
[402012841,1768457463974,-500.0,0.00041643,30]
[402012842,1768457463984,-825.77,0.00041643,30]
[402012843,1768457463994,-1075.79,0.00041643,30]
[402012844,1768457464004,-500.0,0.00041643,30]
[402012845,1768457464013,-744.89,0.00041643,30]
[402012846,1768457464023,-1207.72,0.00041643,30]
[402012847,1768457464032,-500.0,0.00041643,30]
[402012848,1768457464042,-543.97,0.00041643,30]
[402012849,1768457464052,-574.43,0.00041643,30]
[402012850,1768457464062,-500.0,0.00041643,30]
[402012851,1768457464071,-517.17,0.00041643,30]
[402012852,1768457464081,-500.0,0.00041643,30]
[402012853,1768457464091,-500.0,0.00041643,30]
[402012854,1768457464101,-500.0,0.00041643,30]
[402012855,1768457464111,-500.0,0.00041643,30]
[402012856,1768457464121,-576.51,0.00041643,30]
[402012857,1768457464130,-1097.87,0.00041643,30]
[402012858,1768457464140,-1226.97,0.00041643,30]
[402012859,1768457464150,-500.0,0.00041643,30]
[402012860,1768457464160,-700.68,0.00041643,30]
[402012861,1768457464169,-500.0,0.00041643,30]
[402012862,1768457464179,-704.19,0.00041643,30]
[402012863,1768457464189,-500.0,0.00041643,30]
[402012864,1768457464199,-500.0,0.00041643,30]
[402012865,1768457464209,-500.0,0.00041643,30]
[402012866,1768457464219,-576.79,0.00041643,30]
[402012867,1768457464229,-500.0,0.00041643,30]
[402012868,1768457464239,-500.0,0.00041643,30]
[402012869,1768457464248,-527.99010999,0.00041643,30]
[402012870,1768457464259,-500.0,0.00041643,30]
[402012871,1768457464269,-237.617073,0.00041643,30]
[402012872,1768457464279,-536.82648154,0.00041643,30]
[402012873,1768457464288,-281.379602,0.00041643,30]
[402012874,1768457464299,-640.07,0.00041643,30]
[402012875,1768457464308,-730.39,0.00041643,30]
[402012876,1768457464318,-725.61,0.00041643,30]
[402012877,1768457464328,-500.0,0.00041643,30]
[402012878,1768457464338,-500.0,0.00041643,30]
[402012879,1768457464348,-500.0,0.00041643,14]
[402012880,1768457464359,-500.0,0.00041643,30]
[402012881,1768457464369,-500.0,0.00041643,30]
[402012882,1768457464379,-1152.85,0.00041643,30]
[402012883,1768457464390,-753.16,0.00041643,30]
[402012884,1768457464401,-1050.4,0.00041643,30]
[402012885,1768457464717,-500.0,0.00041643,30]
[402012886,1768457464743,-633.08,0.00041643,30]
[402012887,1768457464753,-500.0,0.00041643,30]